bitfinex-derivatives/quotes_BTCF0:USTF0_20250129
["timestamp","ask_amount","ask_price","bid_price","bid_amount"]
[1738156756226,0.30206789,101950.0,101930.0,0.38641985]
[1738156756430,0.20961809,101950.0,101940.0,0.196263]
[1738156756833,0.57041809,101950.0,101940.0,0.197263]
[1738156757035,0.20961809,101950.0,101940.0,0.197263]
[1738156757237,0.37416509,101950.0,101940.0,0.239263]
[1738156757425,0.01336509,101950.0,101940.0,0.3317128]
[1738156757731,0.01336509,101950.0,101940.0,0.239263]
[1738156758035,0.66285889,101950.0,101940.0,0.043]
[1738156758238,0.66285889,101950.0,101940.0,0.19]
[1738156759142,0.196263,101940.0,101930.0,0.19641985]
[1738156759346,0.2887128,101940.0,101930.0,0.42641985]
[1738156759544,0.196263,101940.0,101930.0,0.42641985]
[1738156759732,0.2887128,101940.0,101930.0,0.42641985]
[1738156760642,0.66286989,101950.0,101930.0,0.42641985]
[1738156760843,0.2887128,101940.0,101930.0,0.42641985]
[1738156761442,0.66286789,101950.0,101930.0,0.42641985]
[1738156762541,0.66286789,101950.0,101940.0,0.196263]
[1738156763043,0.66786789,101950.0,101940.0,0.196263]
[1738156763546,0.66786789,101950.0,101930.0,0.19642385]
[1738156763750,0.30606789,101950.0,101940.0,0.001]
[1738156764140,0.66286789,101950.0,101940.0,0.003]
[1738156764342,0.66286789,101950.0,101940.0,0.023]
[1738156764646,0.66286789,101950.0,101940.0,0.219263]
[1738156765353,0.92328546,101950.0,101940.0,0.219263]
[1738156765742,0.92728546,101950.0,101940.0,0.217263]
[1738156766143,0.92828546,101950.0,101940.0,0.216263]
[1738156766342,0.92428546,101950.0,101940.0,0.216263]
[1738156766543,0.92428546,101950.0,101940.0,0.218263]
[1738156767344,0.92328546,101950.0,101940.0,0.219263]
[1738156768950,0.77811068,101950.0,101940.0,0.219263]
[1738156769150,0.77811068,101950.0,101940.0,0.023]
[1738156770552,0.77811068,101950.0,101940.0,0.003]
[1738156770859,0.196263,101940.0,101930.0,0.17545157]
[1738156771162,0.6495128,101940.0,101930.0,0.39545157]
[1738156771350,0.7419626,101940.0,101930.0,0.17114797]
[1738156771547,0.7419626,101940.0,101930.0,0.10424797]
[1738156771964,0.196301,101920.0,101910.0,0.2340255]
[1738156772169,0.557101,101920.0,101910.0,0.3540255]
[1738156773157,0.6495508,101920.0,101910.0,0.3540255]
[1738156773355,0.557101,101920.0,101910.0,0.5503465]
[1738156773659,0.196301,101920.0,101910.0,0.5503465]
[1738156774049,0.73078665,101930.0,101910.0,0.5503465]
[1738156774656,0.77448665,101930.0,101910.0,0.5503465]
[1738156775264,0.89064131,101930.0,101910.0,0.316321]
[1738156775464,0.196301,101920.0,101910.0,0.316321]
[1738156778166,0.196301,101920.0,101910.0,0.677121]
[1738156778466,0.196301,101920.0,101910.0,0.316321]
[1738156784066,0.6495508,101920.0,101910.0,0.3540255]
[1738156784269,0.6495508,101920.0,101910.0,0.2340255]
[1738156785168,0.6495508,101920.0,101910.0,0.02]
[1738156785370,0.196321,101910.0,101900.0,0.00014685]
[1738156785559,0.6495708,101910.0,101900.0,0.00014685]
[1738156785863,0.6495708,101910.0,101890.0,0.6508]
[1738156785864,0.4532498,101910.0,101890.0,0.6508]
[1738156786063,0.4532498,101910.0,101890.0,0.28985316]
[1738156786064,0.7378898,101900.0,101890.0,0.28985316]
[1738156788461,0.7378898,101900.0,101890.0,0.52488078]
[1738156788865,0.7388898,101900.0,101890.0,0.52488078]
[1738156789057,0.7814898,101900.0,101890.0,0.52488078]
[1738156790667,0.7814898,101900.0,101890.0,0.52510838]
[1738156791368,0.7814898,101900.0,101890.0,0.50110413]
[1738156791558,0.79026354,101900.0,101890.0,0.41205933]
[1738156791757,0.79026354,101900.0,101890.0,0.11469262]
[1738156791961,0.196359,101890.0,101880.0,0.64647282]
[1738156792166,2.1496088,101890.0,101880.0,0.43401139]
[1738156792665,0.196398,101870.0,101860.0,1.60452932]
[1738156792867,0.196398,101870.0,101860.0,1.60388932]
[1738156793062,0.2888478,101870.0,101860.0,1.60388932]
[1738156793262,0.4162478,101870.0,101860.0,1.60388932]
[1738156794272,0.4172478,101870.0,101860.0,1.60388932]
[1738156795675,0.4162478,101870.0,101860.0,1.60388932]
[1738156795878,0.4172478,101870.0,101860.0,1.60588932]
[1738156796381,0.00014685,101880.0,101870.0,0.196398]
[1738156796575,0.00014685,101880.0,101870.0,0.9447478]
[1738156796773,0.00014685,101880.0,101870.0,0.9247478]
[1738156797072,0.00014685,101880.0,101870.0,0.832298]
[1738156798565,0.00014685,101880.0,101870.0,0.833298]
[1738156798967,0.00014685,101880.0,101870.0,0.835298]
[1738156799577,0.00014685,101880.0,101870.0,0.879298]
[1738156800076,0.00014685,101880.0,101870.0,0.877298]
[1738156800270,0.00114685,101880.0,101870.0,0.877298]
[1738156800773,0.00014685,101880.0,101870.0,0.9697478]
[1738156800974,0.00014685,101880.0,101870.0,0.9717478]
[1738156801277,0.00014685,101880.0,101870.0,0.879298]
[1738156801679,0.00014685,101880.0,101870.0,0.9717478]
[1738156801872,0.00014685,101880.0,101870.0,0.9727478]
[1738156802674,0.00314685,101880.0,101870.0,0.9697478]
[1738156802881,0.00414685,101880.0,101870.0,0.9697478]
[1738156807180,1e-08,101880.0,101870.0,1.18445907]
[1738156807484,1e-08,101880.0,101870.0,1.09200927]
[1738156807993,1e-08,101880.0,101870.0,1.07200927]
[1738156809986,1e-08,101880.0,101870.0,1.37200927]
[1738156810793,0.00014685,101890.0,101870.0,1.36806107]
[1738156810978,0.11609086,101920.0,101910.0,0.196321]
[1738156811185,0.11609086,101920.0,101910.0,0.8595708]
[1738156811475,0.11609086,101920.0,101910.0,0.9523708]
[1738156811680,0.14511357,101930.0,101920.0,0.196301]
[1738156811884,0.14511357,101930.0,101920.0,0.8595508]
[1738156812874,0.14711357,101930.0,101920.0,0.8595508]
[1738156813081,0.009,101930.0,101920.0,0.8605508]
[1738156813684,0.11613524,101940.0,101930.0,0.196282]
[1738156813878,0.11613524,101940.0,101930.0,0.8695318]
[1738156814681,0.11613524,101940.0,101930.0,0.9175318]
[1738156814989,0.15391106,101950.0,101940.0,0.196263]
[1738156815189,0.14511357,101950.0,101940.0,0.9502128]
[1738156815687,0.14511357,101950.0,101940.0,1.0426626]
[1738156816183,0.70215757,101950.0,101940.0,0.3007]
[1738156816384,0.70215757,101950.0,101940.0,0.21]
[1738156816590,0.70615757,101950.0,101940.0,0.21]
[1738156817479,0.561044,101950.0,101940.0,0.21]
[1738156817791,0.561044,101950.0,101940.0,0.406263]
[1738156817995,0.005,101950.0,101940.0,0.9519626]
[1738156818185,0.005,101950.0,101940.0,0.8595128]
[1738156820191,0.005,101950.0,101940.0,0.9519626]
[1738156821089,0.005,101950.0,101940.0,0.8595128]
[1738156821287,0.201244,101950.0,101940.0,0.8595128]
[1738156825088,0.562044,101950.0,101940.0,0.21]
[1738156828397,0.562044,101950.0,101940.0,0.3024498]
[1738156829786,0.562044,101950.0,101940.0,0.21]
[1738156830183,0.562044,101950.0,101940.0,0.3024498]
[1738156831399,0.562044,101950.0,101940.0,0.21]
[1738156831787,0.562044,101950.0,101940.0,0.3024498]
[1738156832190,0.562044,101950.0,101940.0,0.21]
[1738156838996,0.196263,101940.0,101930.0,0.00014685]
[1738156839303,0.1963,101930.0,101910.0,0.6495558]
[1738156839605,0.5571,101930.0,101910.0,0.8595558]
[1738156839799,0.5571,101930.0,101920.0,0.0924498]
[1738156839998,0.5571,101930.0,101920.0,0.3024498]
[1738156841705,0.1963,101930.0,101920.0,0.3024498]
[1738156841903,0.5571,101930.0,101920.0,0.3034498]
[1738156842199,0.1963,101930.0,101920.0,0.3034498]
[1738156842604,0.1963,101930.0,101920.0,0.3064498]
[1738156843105,0.5571,101930.0,101920.0,0.004]
[1738156843307,0.1963,101930.0,101920.0,0.004]
[1738156843502,0.1963,101930.0,101920.0,0.184]
[1738156844104,0.20941216,101930.0,101920.0,0.184]
[1738156844489,0.57021216,101930.0,101920.0,0.184]
[1738156844897,0.20941216,101930.0,101920.0,0.184]
[1738156845207,0.01311216,101930.0,101920.0,0.8335508]
[1738156845513,0.49512642,101940.0,101930.0,0.196282]
[1738156845696,0.49512642,101940.0,101930.0,0.4987318]
[1738156846092,0.85592642,101940.0,101930.0,0.406282]
[1738156846402,0.49512642,101940.0,101930.0,0.406282]
[1738156846803,0.85592642,101940.0,101930.0,0.406282]
[1738156847003,0.85592642,101940.0,101930.0,0.4987318]
[1738156847608,0.49512642,101940.0,101930.0,0.4987318]
[1738156847907,0.85592642,101940.0,101930.0,0.4987318]
[1738156848100,0.50606042,101940.0,101930.0,0.4987318]
[1738156848606,0.5192235,101940.0,101930.0,0.4987318]
[1738156848807,0.7154865,101940.0,101930.0,0.4987318]
[1738156849105,0.3546865,101940.0,101930.0,0.4987318]
[1738156849301,0.7154865,101940.0,101930.0,0.4987318]
[1738156853002,0.3546865,101940.0,101930.0,0.4987318]
[1738156853508,0.7154865,101940.0,101930.0,0.4987318]
[1738156854010,0.3546865,101940.0,101930.0,0.4987318]
[1738156854210,0.7154865,101940.0,101930.0,0.4987318]
[1738156854816,0.6576773,101940.0,101930.0,0.4987318]
[1738156856311,0.2968773,101940.0,101930.0,0.4987318]
[1738156856918,0.6576773,101940.0,101930.0,0.4987318]
[1738156857403,0.2968773,101940.0,101930.0,0.4987318]
[1738156861813,0.1006143,101940.0,101930.0,0.4987318]
[1738156862016,0.08745122,101940.0,101930.0,0.8595318]
[1738156862216,0.08745122,101940.0,101930.0,0.9134318]
[1738156865121,0.08745122,101940.0,101930.0,1.0058816]
[1738156865314,0.44212955,101960.0,101950.0,0.196244]
[1738156865618,0.44212955,101960.0,101950.0,0.8394938]
[1738156866614,0.44412955,101960.0,101950.0,0.8394938]
[1738156866922,0.25490055,101960.0,101950.0,0.8404938]
[1738156867119,0.15110055,101960.0,101950.0,0.8404938]
[1738156868026,0.16431017,101960.0,101950.0,0.8404938]
[1738156869117,0.07700962,101960.0,101950.0,0.8404938]
[1738156869821,0.02220962,101960.0,101950.0,0.8404938]
[1738156870119,0.21843362,101960.0,101950.0,0.9461938]
[1738156870327,0.57923362,101960.0,101950.0,0.387244]
[1738156870828,0.67168342,101960.0,101950.0,0.191]
[1738156871217,0.67168342,101960.0,101950.0,0.387244]
[1738156871218,0.57923362,101960.0,101950.0,0.387244]
[1738156871420,0.57923362,101960.0,101950.0,0.4796938]
[1738156871618,0.57923362,101960.0,101950.0,0.387244]
[1738156871815,0.38300962,101960.0,101950.0,0.4796938]
[1738156872016,0.02220962,101960.0,101950.0,0.4796938]
[1738156872215,0.47545942,101960.0,101950.0,0.191]
[1738156872426,0.67168442,101960.0,101950.0,0.191]
[1738156873213,0.57923462,101960.0,101950.0,0.191]
[1738156875524,0.57923462,101960.0,101950.0,0.2834498]
[1738156875733,0.57923462,101960.0,101950.0,0.4796938]
[1738156877820,0.57923462,101960.0,101950.0,0.387244]
[1738156878021,0.57923462,101960.0,101950.0,0.191]
[1738156879025,0.21843462,101960.0,101950.0,0.191]
[1738156879426,0.57923462,101960.0,101950.0,0.191]
[1738156880431,0.21843462,101960.0,101950.0,0.2834498]
[1738156880631,0.57923462,101960.0,101950.0,0.2834498]
[1738156880927,0.57923462,101960.0,101950.0,0.4796938]
[1738156882634,0.21843462,101960.0,101950.0,0.4796938]
[1738156883435,0.57923462,101960.0,101950.0,0.4796938]
[1738156884032,0.57923462,101960.0,101950.0,0.191]
[1738156886133,0.57923462,101960.0,101950.0,0.4796938]
[1738156886538,0.38300962,101960.0,101950.0,0.4796938]
[1738156886930,0.57923462,101960.0,101950.0,0.4796938]
[1738156887532,0.21843462,101960.0,101950.0,0.4796938]
[1738156888233,0.57923462,101960.0,101950.0,0.4796938]
[1738156888444,0.21843462,101960.0,101950.0,0.4796938]
[1738156889927,0.57923462,101960.0,101950.0,0.191]
[1738156890433,0.67168442,101960.0,101950.0,0.191]
[1738156891241,0.57923462,101960.0,101950.0,0.191]
[1738156893841,0.69557593,101960.0,101950.0,0.191]
[1738156896244,0.78802573,101960.0,101950.0,0.191]
[1738156898339,0.69557593,101960.0,101950.0,0.191]
[1738156900141,0.69557593,101960.0,101950.0,0.2834498]
[1738156900346,0.13855093,101960.0,101950.0,0.4796938]
[1738156900538,0.33477593,101960.0,101950.0,0.4796938]
[1738156900738,0.69557593,101960.0,101950.0,0.4796938]
[1738156901245,0.21843462,101960.0,101950.0,0.4796938]
[1738156902845,0.02220962,101960.0,101950.0,0.4796938]
[1738156903545,0.21843462,101960.0,101950.0,0.4796938]
[1738156904140,0.33502992,101960.0,101950.0,0.4796938]
[1738156904731,0.13880492,101960.0,101950.0,0.4796938]
[1738156905139,0.13880492,101960.0,101950.0,0.8942938]
[1738156905345,0.1255953,101960.0,101950.0,0.9867436]
[1738156905537,0.14736281,101970.0,101960.0,0.196225]
[1738156905843,0.14736281,101970.0,101960.0,0.9211748]
[1738156906036,0.14736281,101970.0,101960.0,0.95703273]
[1738156906236,0.14589098,101970.0,101960.0,0.9211748]
[1738156907149,0.70289698,101970.0,101960.0,0.5603748]
[1738156907344,0.70489698,101970.0,101960.0,0.22]
[1738156907543,0.70489698,101970.0,101960.0,0.3124498]
[1738156907751,0.70489698,101970.0,101960.0,0.5086748]
[1738156908139,0.70389698,101970.0,101960.0,0.5086748]
[1738156908340,0.34309698,101970.0,101960.0,0.5086748]
[1738156908542,0.19735285,101970.0,101960.0,1.51663191]
[1738156908833,0.00114685,101970.0,101960.0,1.51663191]
[1738156909034,0.00414685,101970.0,101960.0,1.57333191]
[1738156910843,0.14574413,101990.0,101980.0,0.196187]
[1738156911055,0.27489295,102000.0,101990.0,0.196167]
[1738156911247,0.27489295,102000.0,101990.0,0.9802168]
[1738156912354,0.27789295,102000.0,101990.0,0.9802168]
[1738156913452,0.103,102000.0,101990.0,0.9802168]
[1738156913845,0.106,102000.0,101990.0,0.9802168]
[1738156914446,0.103,102000.0,101990.0,0.9802168]
[1738156914646,0.104,102000.0,101990.0,0.9802168]
[1738156916443,0.104,102000.0,101990.0,1.17665852]
[1738156917746,0.00014685,102010.0,101990.0,0.98049152]
[1738156917953,0.00014685,102010.0,102000.0,0.7418476]
[1738156918148,0.00014685,102010.0,102000.0,0.9979476]
[1738156918348,0.00014685,102010.0,102000.0,0.9054978]
[1738156918649,0.19627585,102010.0,102000.0,0.8493978]
[1738156919848,0.00214685,102010.0,102000.0,0.8493978]
[1738156923354,0.00214685,102010.0,102000.0,0.9418476]
[1738156924659,0.00214685,102010.0,102000.0,0.8493978]
[1738156928065,0.00214685,102010.0,102000.0,0.9418476]
[1738156928555,0.00214685,102010.0,102000.0,0.8493978]
[1738156931861,0.36294685,102010.0,102000.0,0.396148]
[1738156932160,0.196148,102000.0,101990.0,0.196158]
[1738156932456,0.196167,101990.0,101980.0,0.23387096]
[1738156932648,0.196187,101980.0,101970.0,0.49183599]
[1738156933053,0.196187,101980.0,101970.0,0.58428579]
[1738156933357,0.556987,101980.0,101970.0,0.29563299]
[1738156933564,0.6494368,101980.0,101970.0,0.29563299]
[1738156933762,0.6494368,101980.0,101970.0,0.20883299]
[1738156933963,0.6494368,101980.0,101970.0,0.03673299]
[1738156935260,0.6494368,101980.0,101970.0,0.04173299]
[1738156935855,0.6494368,101980.0,101970.0,0.03873299]
[1738156936067,0.196206,101970.0,101960.0,0.31540865]
[1738156936267,0.7419056,101970.0,101960.0,0.31540865]
[1738156936650,0.6494558,101970.0,101960.0,0.30671574]
[1738156936958,0.6494558,101970.0,101960.0,0.00014685]
[1738156936959,0.7419056,101970.0,101960.0,0.00014685]
[1738156937157,0.7984056,101970.0,101960.0,0.00014685]
[1738156937554,0.7059558,101970.0,101960.0,0.00014685]
[1738156938565,0.7069558,101970.0,101960.0,0.00014685]
[1738156939358,0.614506,101970.0,101960.0,0.00014685]
[1738156941058,0.7069558,101970.0,101960.0,0.00014685]
[1738156941458,0.614506,101970.0,101960.0,0.00014685]
[1738156941967,0.7069558,101970.0,101960.0,0.00014685]
[1738156943165,0.7994056,101970.0,101960.0,0.00014685]
[1738156944558,0.7069558,101970.0,101960.0,0.00014685]
[1738156945566,0.7994056,101970.0,101960.0,0.00014685]
[1738156945766,0.7069558,101970.0,101960.0,0.00014685]
[1738156948558,0.7069558,101970.0,101950.0,0.536244]
[1738156948559,0.7069558,101970.0,101950.0,0.53622391]
[1738156948756,0.557025,101960.0,101950.0,0.73622391]
[1738156949669,0.196225,101960.0,101950.0,0.73622391]
[1738156950969,0.196225,101960.0,101950.0,0.73722391]
[1738156951363,0.6494748,101960.0,101950.0,0.54097991]
[1738156951671,0.7041748,101960.0,101950.0,0.34097991]
[1738156951975,0.7041748,101960.0,101950.0,0.56097991]
[1738156952673,0.611725,101960.0,101950.0,0.56097991]
[1738156952971,0.611725,101960.0,101950.0,0.34097991]
[1738156952972,0.7041748,101960.0,101950.0,0.34097991]
[1738156953170,0.7595748,101960.0,101950.0,0.32831655]
[1738156953471,0.7595748,101960.0,101950.0,1e-08]
[1738156953673,2.2595748,101960.0,101950.0,1e-08]
[1738156954774,0.7595748,101960.0,101950.0,1e-08]
[1738156955274,0.77192026,101960.0,101950.0,1e-08]
[1738156959177,0.196244,101950.0,101940.0,0.00010686]
[1738156959381,0.6494938,101950.0,101940.0,0.00010686]
[1738156959569,0.2887128,101940.0,101930.0,0.1079]
[1738156959770,0.196302,101920.0,101910.0,0.05268644]
[1738156960076,0.6495518,101920.0,101910.0,0.05268644]
[1738156961068,0.557102,101920.0,101910.0,0.05268644]
[1738156962169,0.6495518,101920.0,101910.0,0.05268644]
[1738156962371,0.6495518,101920.0,101910.0,0.05368644]
[1738156963173,0.6495518,101920.0,101910.0,0.05468644]
[1738156965182,0.66499254,101920.0,101910.0,0.05468644]
[1738156965383,0.196321,101910.0,101900.0,0.12242937]
[1738156965596,0.6495708,101910.0,101900.0,0.12242937]
[1738156966275,0.64966144,101910.0,101900.0,0.12242937]
[1738156966477,0.6495708,101910.0,101900.0,0.12242937]
[1738156966781,0.6495708,101910.0,101900.0,0.06752937]
[1738156967679,0.7046708,101910.0,101900.0,0.06752937]
[1738156969182,0.96555474,101910.0,101900.0,0.06752937]
[1738156969490,0.96544991,101910.0,101900.0,0.06752937]
[1738156969886,0.96544991,101910.0,101900.0,0.06852937]
[1738156970084,0.96544991,101910.0,101900.0,0.07152937]
[1738156970982,0.96544991,101910.0,101900.0,0.28152937]
[1738156971785,0.96544991,101910.0,101900.0,0.07152937]
[1738156972889,0.96555474,101910.0,101900.0,0.07152937]
[1738156973093,1.05789971,101910.0,101900.0,0.05535724]
[1738156973291,0.96544991,101910.0,101900.0,0.05535724]
[1738156973675,0.96554387,101910.0,101900.0,0.05535724]
[1738156973881,0.96544991,101910.0,101900.0,0.05535724]
[1738156975384,1.05789971,101910.0,101900.0,0.05535724]
[1738156976188,1.05789971,101910.0,101900.0,0.02172724]
[1738156976379,1.14373971,101910.0,101900.0,0.0099]
[1738156976584,0.19636,101890.0,101880.0,0.1056]
[1738156976784,0.6496098,101890.0,101880.0,0.1056]
[1738156977493,0.196394,101880.0,101860.0,1.56434468]
[1738156977691,0.557194,101880.0,101870.0,0.0554]
[1738156977884,0.196394,101880.0,101870.0,0.0554]
[1738156978491,0.557194,101880.0,101870.0,0.0554]
[1738156979895,0.557194,101880.0,101870.0,0.0564]
[1738156980087,0.6496438,101880.0,101870.0,0.0564]
[1738156980495,0.6496438,101880.0,101870.0,0.0594]
[1738156980788,0.31224094,101890.0,101870.0,0.9390478]
[1738156980983,9.177e-05,101880.0,101870.0,0.9390358]
[1738156981389,9.177e-05,101880.0,101870.0,0.5782358]
[1738156981590,9.177e-05,101880.0,101870.0,0.9390358]
[1738156982497,9.177e-05,101880.0,101870.0,0.9380358]
[1738156983389,9.177e-05,101880.0,101870.0,0.9390358]
[1738156983994,0.11587794,101890.0,101880.0,0.196379]
[1738156984298,0.11587794,101890.0,101880.0,0.8696288]
[1738156984699,0.11587794,101890.0,101880.0,0.9620786]
[1738156984993,0.35980461,101900.0,101880.0,0.6732498]
[1738156985200,0.35980461,101900.0,101890.0,0.3992098]
[1738156985387,0.16346061,101900.0,101890.0,0.9500098]
[1738156985591,0.20324935,101900.0,101890.0,0.9500098]
[1738156986602,0.20424935,101900.0,101890.0,0.9500098]
[1738156987301,0.20324935,101900.0,101890.0,0.9500098]
[1738156987497,0.20324935,101900.0,101890.0,0.9510098]
[1738156987993,0.20624935,101900.0,101890.0,0.9510098]
[1738156988604,0.14469951,101910.0,101900.0,0.19634]
[1738156988903,0.14469951,101910.0,101900.0,0.8830898]
[1738156989697,0.21520357,101920.0,101910.0,0.196321]
[1738156990003,0.21520357,101920.0,101910.0,0.426321]
[1738156992010,0.21520357,101920.0,101910.0,0.427321]
[1738156993011,0.30765337,101920.0,101910.0,0.427321]
[1738156993308,0.66845337,101920.0,101910.0,0.231]
[1738156994402,0.66845337,101920.0,101910.0,0.427321]
[1738156995304,0.30765337,101920.0,101910.0,0.427321]
[1738156995502,0.66845337,101920.0,101910.0,0.427321]
[1738156995809,0.30765337,101920.0,101910.0,0.427321]
[1738156996111,0.21520357,101920.0,101910.0,0.427321]
[1738156997811,0.00014685,101920.0,101910.0,0.9730206]
[1738156998104,0.75636651,101940.0,101930.0,0.196283]
[1738156998302,0.14469951,101940.0,101930.0,0.216283]
[1738156998703,0.14469951,101940.0,101930.0,0.271283]
[1738156998910,0.14469951,101940.0,101930.0,0.632083]
[1738156999302,0.14669951,101940.0,101930.0,0.632083]
[1738156999701,0.16543377,101940.0,101930.0,0.632083]
[1738157000106,0.36169677,101940.0,101930.0,0.632083]
[1738157000613,0.45414657,101940.0,101930.0,0.632083]
[1738157000803,0.45614657,101940.0,101930.0,0.632083]
[1738157001399,0.36369677,101940.0,101930.0,0.632083]
[1738157002008,0.16743377,101940.0,101930.0,0.7245328]
[1738157002410,0.02273426,101940.0,101930.0,0.7245328]
[1738157003708,0.004,101940.0,101930.0,0.7245328]
[1738157009010,0.00014685,101950.0,101940.0,0.196263]
[1738157009216,0.196214,101970.0,101960.0,0.196225]
[1738157009415,0.5023018,101970.0,101950.0,0.1134]
[1738157009611,0.196263,101940.0,101930.0,0.612072]
[1738157009916,0.6495128,101940.0,101930.0,0.416283]
[1738157010118,0.614363,101940.0,101930.0,0.416283]
[1738157010507,0.253563,101940.0,101930.0,0.5087328]
[1738157010713,0.61169485,101950.0,101940.0,0.196263]
[1738157010913,0.25089485,101950.0,101940.0,0.216263]
[1738157011203,0.00314685,101950.0,101940.0,0.3087128]
[1738157011422,0.00314685,101950.0,101940.0,0.6695128]
[1738157011720,0.00314685,101950.0,101940.0,0.7619626]
[1738157012017,0.00314685,101950.0,101940.0,0.7629626]
[1738157012912,0.00314685,101950.0,101940.0,0.6705128]
[1738157021316,0.00314685,101950.0,101940.0,0.6695128]
[1738157021621,0.00314685,101950.0,101940.0,0.6705128]
[1738157022918,0.00014685,101950.0,101940.0,0.6705128]
[1738157023122,0.00014685,101950.0,101940.0,0.7629626]
[1738157023412,8.5e-07,101950.0,101940.0,0.91936084]
[1738157023614,8.5e-07,101950.0,101940.0,1.01745294]
[1738157023820,8.5e-07,101950.0,101940.0,1.43564396]
[1738157024413,8.5e-07,101950.0,101940.0,1.13564396]
[1738157024612,8.5e-07,101950.0,101940.0,1.43564396]
[1738157025917,8.5e-07,101950.0,101940.0,1.13564396]
[1738157026423,8.5e-07,101950.0,101940.0,1.09993294]
[1738157028521,8.5e-07,101950.0,101940.0,1.13564111]
[1738157029423,8.5e-07,101950.0,101940.0,1.42870249]
[1738157031523,8.5e-07,101950.0,101940.0,1.34622249]
[1738157031717,8.5e-07,101950.0,101940.0,0.99928235]
[1738157032017,8.5e-07,101950.0,101940.0,1.09173215]
[1738157032618,8.5e-07,101950.0,101940.0,1.44234726]
[1738157033422,8.5e-07,101950.0,101940.0,1.46234726]
[1738157033624,8.5e-07,101950.0,101940.0,1.51754726]
[1738157034725,8.5e-07,101950.0,101940.0,1.53226726]
[1738157035721,8.5e-07,101950.0,101940.0,1.18165215]
[1738157036118,8.5e-07,101950.0,101940.0,1.23865215]
[1738157036734,8.5e-07,101950.0,101940.0,1.33674425]
[1738157037628,8.5e-07,101950.0,101940.0,1.43930251]
[1738157039428,8.5e-07,101950.0,101940.0,1.49685624]
[1738157040429,8.5e-07,101950.0,101940.0,1.55065624]
[1738157040932,8.5e-07,101950.0,101940.0,1.35000588]
[1738157043217,8.5e-07,101950.0,101940.0,1.18400588]
[1738157043418,8.5e-07,101950.0,101940.0,1.05683608]
[1738157043619,0.25464485,101950.0,101940.0,0.92867811]
[1738157043824,0.25464485,101950.0,101940.0,0.56787811]
[1738157045632,0.25464485,101950.0,101940.0,0.66032791]
[1738157046928,0.25464485,101950.0,101940.0,0.3097128]
[1738157047331,0.05840085,101950.0,101940.0,0.6705128]
[1738157048323,0.07514804,101950.0,101940.0,0.6705128]
[1738157048726,0.27139204,101950.0,101940.0,0.6705128]
[1738157048927,0.27139204,101950.0,101940.0,0.578063]
[1738157053731,0.72464184,101950.0,101930.0,0.2937619]
[1738157053938,0.7626128,101940.0,101930.0,0.2937619]
[1738157054433,0.196283,101930.0,101920.0,0.84082386]
[1738157054637,0.7055328,101930.0,101920.0,0.69452386]
[1738157055836,0.613083,101930.0,101920.0,0.69452386]
[1738157056139,0.7055328,101930.0,101920.0,0.64452386]
[1738157057439,0.7075328,101930.0,101920.0,0.64452386]
[1738157057640,0.7075328,101930.0,101920.0,0.00014685]
[1738157058233,0.7075328,101930.0,101920.0,1e-08]
[1738157058438,1.0075328,101930.0,101920.0,1e-08]
[1738157058639,1.0085328,101930.0,101920.0,1e-08]
[1738157059347,1.0065328,101930.0,101920.0,1e-08]
[1738157059539,1.0075328,101930.0,101920.0,1e-08]
[1738157059942,0.5112498,101930.0,101910.0,3.382e-05]
[1738157060246,0.6495518,101920.0,101910.0,3.382e-05]
[1738157062932,0.4532498,101920.0,101900.0,0.00014685]
[1738157063137,0.7614708,101910.0,101900.0,0.00014685]
[1738157065545,0.7614708,101910.0,101900.0,0.00314685]
[1738157066052,0.7614708,101910.0,101900.0,0.00414685]
[1738157066940,0.76152385,101910.0,101900.0,0.00414685]
[1738157067341,0.7614708,101910.0,101900.0,0.00414685]
[1738157067546,0.76152385,101910.0,101900.0,0.00414685]
[1738157067851,0.7614708,101910.0,101900.0,0.00414685]
[1738157071050,0.76152385,101910.0,101900.0,0.00414685]
[1738157071454,0.7614708,101910.0,101900.0,0.00414685]
[1738157071848,0.76152385,101910.0,101900.0,0.00414685]
[1738157072049,0.7614708,101910.0,101900.0,0.00414685]
[1738157072550,0.7614708,101910.0,101900.0,0.22414685]
[1738157073752,0.0584,101910.0,101900.0,0.78128685]
[1738157073942,5.305e-05,101910.0,101900.0,0.92773665]
[1738157074146,5.305e-05,101910.0,101900.0,0.94968685]
[1738157074657,0.09250285,101910.0,101900.0,0.94968685]
[1738157074955,0.2887708,101910.0,101900.0,0.58888685]
[1738157075349,0.6495708,101910.0,101900.0,0.39254685]
[1738157075549,0.28882385,101910.0,101900.0,0.94968685]
[1738157075751,5.305e-05,101910.0,101900.0,0.94968685]
[1738157076755,5.305e-05,101910.0,101900.0,1.04213665]
[1738157081857,0.00014685,101930.0,101920.0,0.196302]
[1738157082158,0.19642985,101930.0,101920.0,0.9261518]
[1738157082558,0.19642985,101930.0,101920.0,0.833702]
[1738157083065,0.19842985,101930.0,101920.0,0.833702]
[1738157083259,0.65167965,101930.0,101920.0,0.472902]
[1738157084157,0.196302,101920.0,101910.0,0.33]
[1738157084358,0.19634,101900.0,101890.0,0.251355]
[1738157084660,0.196375,101890.0,101870.0,0.19786504]
[1738157084863,0.196379,101880.0,101870.0,0.25286504]
[1738157085162,0.196379,101880.0,101870.0,0.34531484]
[1738157086158,0.196379,101880.0,101870.0,0.3438428]
[1738157086354,0.196379,101880.0,101870.0,0.254393]
[1738157089568,0.21380839,101880.0,101870.0,0.254393]
[1738157089764,0.66705819,101880.0,101870.0,0.058]
[1738157090170,0.30625819,101880.0,101870.0,0.058]
[1738157090469,0.30625819,101880.0,101870.0,0.254398]
[1738157090773,0.21380839,101880.0,101870.0,0.254398]
[1738157091075,0.21380839,101880.0,101870.0,1.39179888]
[1738157091667,0.66705819,101880.0,101870.0,1.14040088]
[1738157091866,0.72405819,101880.0,101870.0,1.14040088]
[1738157092067,0.01742939,101880.0,101870.0,1.79004868]
[1738157092365,0.36094685,101890.0,101880.0,0.196379]
[1738157092565,0.00014685,101890.0,101880.0,1.0087786]
[1738157092774,0.00014685,101890.0,101880.0,0.9163288]
[1738157095990,0.00014685,101890.0,101880.0,0.9183288]
[1738157096286,0.00014685,101890.0,101880.0,0.9223288]
[1738157097687,0.00014685,101890.0,101880.0,0.9213288]
[1738157098691,0.00014685,101890.0,101880.0,0.9173288]
[1738157098890,0.00014685,101890.0,101880.0,0.9183288]
[1738157103179,0.00147276,101910.0,101880.0,1.02232043]
[1738157103379,0.00147276,101910.0,101900.0,1.0103898]
[1738157103584,0.00147276,101910.0,101900.0,1.2203898]
[1738157104193,0.4251288,101920.0,101910.0,0.196321]
[1738157104402,0.42527565,101920.0,101910.0,0.777121]
[1738157104600,0.44258075,101920.0,101910.0,0.8695708]
[1738157104898,0.11646765,101920.0,101910.0,0.8695708]